fUSD/lending_fUSD_20241231
["ID","MTS","AMOUNT","RATE_DAILY","PERIOD"]
[347257000,1735642238648,-1500.92077936,0.00012399,2]
[347257001,1735642238658,-1500.92077936,0.00012399,2]
[347257002,1735642238667,-1500.92077936,0.00012399,2]
[347257003,1735642238677,-1500.92077936,0.00012399,2]
[347257004,1735642238686,-1500.92077936,0.00012399,2]
[347257005,1735642238696,-1500.92077936,0.00012399,2]
[347257006,1735642238706,-1500.92077936,0.00012399,2]
[347257007,1735642238715,-25000.0,0.000124,2]
[347257008,1735642238725,-5561.0,0.000124,5]
[347257009,1735642238734,-5000.0,0.000124,2]
[347257010,1735642238744,-174.12303637,0.000124,2]
[347257011,1735642238755,-1500.92077936,0.000124,2]
[347257012,1735642238765,-342.31764756,0.000124,2]
[347257013,1735642238774,-500.0,0.00012407,2]
[347257014,1735642238784,-500.0,0.00012434,2]
[347257015,1735642238794,-500.0,0.00012461,2]
[347257016,1735642238803,-491.28559591,0.00012465,2]
[347257017,1735642238813,-200.0,0.00012465,2]
[347257018,1735642238823,-491.28559591,0.00012465,2]
[347257019,1735642238837,-625.09086858,0.00012469,2]
[347257020,1735642238847,-200.0,0.00012469,2]
[347257021,1735642238857,-15800.31575235,0.0001247,2]
[347257022,1735642238867,-200.0,0.00012473,2]
[347257023,1735642238877,-15800.31575235,0.00012474,2]
[347257024,1735642238887,-625.09086858,0.00012477,2]
[347257025,1735642238896,-491.28559591,0.00012477,2]
[347257026,1735642238906,-200.0,0.00012479,2]
[347257027,1735642238916,-625.09086858,0.00012479,2]
[347257028,1735642238926,-200.0,0.00012481,2]
[347257029,1735642238936,-625.09086858,0.00012482,2]
[347257030,1735642238946,-200.0,0.00012484,2]
[347257031,1735642238956,-200.0,0.00012484,2]
[347257032,1735642238966,-200.0,0.00012484,2]
[347257033,1735642238975,-15800.31575235,0.00012484,2]
[347257034,1735642238985,-150.0,0.00012486,2]
[347257035,1735642238995,-625.09086858,0.00012486,2]
[347257036,1735642239004,-15800.31575235,0.00012486,2]
[347257037,1735642239014,-200.0,0.00012488,2]
[347257038,1735642239023,-270788.75763095,0.00012488,2]
[347257039,1735642239033,-491.28559591,0.00012488,2]
[347257040,1735642239042,-244.82720169,0.00012489,2]
[347257041,1735642239051,-39252.27195967,0.00012489,2]
[347257042,1735642239061,-1262.92200685,0.00012489,2]
[347257043,1735642239071,-500.0,0.00012489,2]
[347257044,1735642239082,-15800.31575235,0.00012489,2]
[347257045,1735642239092,-200.0,0.0001249,2]
[347257046,1735642239101,-200.0,0.0001249,2]
[347257047,1735642239111,-491.28559591,0.00012491,2]
[347257048,1735642239121,-200.0,0.00012491,2]
[347257049,1735642239130,-244.82720169,0.00012492,2]
[347257050,1735642239140,-200.0,0.00012492,2]
[347257051,1735642239149,-1262.92200685,0.00012492,2]
[347257052,1735642239158,-200.0,0.00012493,2]
[347257053,1735642239168,-900.0,0.00012493,2]
[347257054,1735642239178,-2459.5407707,0.00012493,2]
[347257055,1735642239187,-2459.5407707,0.00012493,2]
[347257056,1735642239196,-1585890.2854255,0.00012494,2]
[347257057,1735642239206,-2486.61997305,0.00012495,2]
[347257058,1735642239215,-491.28559591,0.00012495,2]
[347257059,1735642239225,-39252.27195967,0.00012495,2]
[347257060,1735642239235,-242.61214602,0.00012495,2]
[347257061,1735642239245,-299353.32942351,0.00012496,2]
[347257062,1735642239255,-39252.27195967,0.00012496,2]
[347257063,1735642239265,-623.44910638,0.00012496,2]
[347257064,1735642239274,-623.44910638,0.00012497,2]
[347257065,1735642239283,-339.41379113,0.00012497,2]
[347257066,1735642239295,-200.0,0.00012497,2]
[347257067,1735642239309,-339.41379113,0.00012497,2]
[347257068,1735642239319,-299353.32942351,0.00012497,2]
[347257069,1735642239333,-575.90823648,0.00012498,2]
[347257070,1735642239343,-1262.92200685,0.00012498,2]
[347257071,1735642239354,-625.09086858,0.00012499,2]
[347257072,1735642239364,-75733.78072033,0.00012499,2]
[347257073,1735642239374,-45342.0,0.00012499,2]
[347257074,1735642239386,-186580.0,0.00012499,2]
[347257075,1735642239396,-500.0,0.00012499,2]
[347257076,1735642239406,-150.0,0.00012499,2]
[347257077,1735642239417,-15800.31575235,0.00012499,2]
[347257078,1735642239428,-4660.99075328,0.000125,2]
[347257079,1735642239439,-351646.58573253,0.000125,2]
[347257080,1735642239449,-1262.92200685,0.000125,2]
[347257081,1735642239459,-2527918.7117216,0.000125,2]
[347257082,1735642239472,-703.23,0.000125,2]
[347257087,1735642240299,-1348.7192708,0.000125,2]
[347257088,1735642240314,-973.8839142,0.000125,2]
[347257408,1735642244047,-500.0,0.00012373,2]
[347257410,1735642244056,-19237.7693523,0.000125,2]
[347257636,1735642246283,-353.166,0.0001225,2]
[347257638,1735642246294,-160.52164349,0.000125,2]
[347257642,1735642246325,-423.9,0.000125,2]
[347257644,1735642246342,-1684.3624554,0.000125,2]
[347257646,1735642246356,-563.27119587,0.000125,2]
[347257669,1735642246595,-383019.3866172,0.000125,2]
[347257670,1735642246608,-2069.61379176,0.000125,2]
[347257671,1735642246619,-44211.05000012,0.000125,2]
[347257672,1735642246630,-51862.38436,0.000125,2]
[347257674,1735642246641,-3036.14471592,0.000125,2]
[347258048,1735642262017,1400.0,9.479e-05,2]
[347258049,1735642263677,1400.0,0.00010849,2]
[347258050,1735642264057,500.0,9.479e-05,2]
[347258051,1735642266204,500.0,0.00010849,2]
[347258052,1735642600449,255.85,9.683e-05,2]
[347258053,1735642609773,500.0,9.479e-05,2]
[347258054,1735642611692,-383.98,0.00011696,2]
[347258055,1735642611713,-7037.56,0.00011741,2]
[347258056,1735642611735,-790.06,0.00011797,2]
[347258057,1735642611757,-285.662,0.0001188,2]
[347258058,1735642611778,-250.0,0.0001194,2]
[347258059,1735642611800,-255.85,0.00011947,2]
[347258060,1735642611822,-300.0,0.00012034,2]
[347258061,1735642611843,-4019.61,0.00012035,2]
[347258062,1735642611863,-1400.0,0.00012219,2]
[347258063,1735642611884,-62053.38269745,0.00012226,2]
[347258064,1735642611904,-1700.7811,0.00012299,2]
[347258065,1735642611924,-311.2731,0.00012299,2]
[347258066,1735642611944,-2380.60200223,0.00012299,2]
[347258067,1735642611964,-182.42107342,0.00012299,2]
[347258068,1735642611984,-3858.1072,0.000123,2]
[347258069,1735642612004,-500.0,0.00012373,2]
[347258070,1735642612025,-573.87,0.00012379,2]
[347258071,1735642612046,-314.68586784,0.00012379,2]
[347258072,1735642612067,-500.0,0.00012379,2]
[347258073,1735642612089,-500.0,0.00012379,2]
[347258074,1735642612111,-500.0,0.00012379,2]
[347258075,1735642612132,-500.0,0.00012379,2]
[347258076,1735642612155,-500.0,0.00012379,2]
[347258077,1735642612178,-500.0,0.00012379,2]
[347258078,1735642612201,-500.0,0.00012379,2]
[347258079,1735642612222,-500.0,0.00012379,2]
[347258080,1735642612243,-206.27573994,0.00012379,2]
[347258081,1735642612264,-500.0,0.00012379,2]
[347258082,1735642612286,-500.0,0.00012379,2]
[347258083,1735642612311,-377.57669494,0.00012379,2]
[347258084,1735642612334,-500.0,0.00012379,2]
[347258085,1735642612355,-500.0,0.00012379,2]
[347258086,1735642612377,-500.0,0.00012379,2]
[347258087,1735642612400,-500.0,0.00012379,2]
[347258088,1735642612425,-500.0,0.00012379,2]
[347258089,1735642612451,-500.0,0.00012379,2]
[347258090,1735642612475,-500.0,0.00012379,2]
[347258091,1735642612497,-307.20615208,0.00012379,2]
[347258092,1735642612520,-500.0,0.00012379,2]
[347258093,1735642612541,-450.61326552,0.00012379,2]
[347258094,1735642612562,-500.0,0.00012379,2]
[347258095,1735642612584,-500.0,0.00012379,2]
[347258096,1735642612606,-500.0,0.00012379,2]
[347258097,1735642612628,-500.0,0.00012379,2]
[347258098,1735642612649,-500.0,0.00012379,2]
[347258099,1735642612672,-500.0,0.00012379,2]
[347258100,1735642612693,-500.0,0.00012379,2]
[347258101,1735642612714,-500.0,0.00012379,2]
[347258102,1735642612735,-4660.99075328,0.0001238,2]
[347258103,1735642612758,-351949.34656487,0.0001238,2]
[347258104,1735642612782,-114927.14578843,0.0001238,2]
[347258105,1735642612863,500.0,0.00010849,2]
[347258106,1735642681959,1100.0,0.00010575,2]
[347258107,1735643006976,291.62,0.00010137,2]
[347258133,1735643431679,-150.0,0.00011121,2]
[347258134,1735643431688,-150.0,0.00011121,2]
[347258135,1735643431697,-250.0,0.00011227,2]
[347258136,1735643431706,-500.0,0.00011246,2]
[347258137,1735643431716,-300.0,0.00011294,2]
[347258138,1735643431725,-570.06,0.00011295,2]
[347258139,1735643431736,-39535.94,0.00011295,2]
[347258140,1735643431746,-500.27,0.00011368,2]
[347258141,1735643431755,-1245.0,0.00011384,2]
[347258142,1735643431765,-167.23,0.00011398,2]
[347258143,1735643431774,-23900.0,0.0001141,2]
[347258144,1735643431784,-1000.0,0.00011486,2]
[347258145,1735643431794,-1227.64,0.00011505,2]
[347258146,1735643431803,-250.0,0.00011527,2]
[347258147,1735643431812,-822.88,0.00011661,2]
[347258148,1735643431822,-217.04,0.00011689,2]
[347258149,1735643431831,-183.43,0.00011863,2]
[347258150,1735643431840,-273.739,0.0001188,2]
[347258151,1735643431849,-1100.0,0.00011945,2]
[347258152,1735643431858,-450.0,0.00012,2]
[347258153,1735643431868,-4444.12312,0.00012128,2]
[347258154,1735643431877,-4444.12312,0.00012128,2]
[347258155,1735643431887,-4444.12312,0.00012128,2]
[347258156,1735643431896,-4444.12312,0.00012128,3]
[347258157,1735643431905,-4444.12312,0.00012128,3]
[347258158,1735643431915,-380.71001464,0.00012128,3]
[347258159,1735643431924,-2572.609,0.00012132,2]
[347258160,1735643431933,-159.583,0.00012132,2]
[347258161,1735643431943,-78184.0,0.00012134,2]
[347258162,1735643431952,-500.0,0.00012219,2]
[347258163,1735643431961,-429.29762397,0.0001224,2]
[347258164,1735643431970,-6593.106,0.00012249,2]
[347258165,1735643431980,-12977.1252,0.0001228,2]
[347258166,1735643431989,-294.815,0.0001228,2]
[347258167,1735643431998,-4992.4492,0.0001228,2]
[347258168,1735643432007,-12697.9277,0.0001228,2]
[347258169,1735643432016,-172.21344605,0.0001228,2]
[347258170,1735643432026,-172.21344605,0.00012299,2]
[347258171,1735643432035,-348.25710285,0.00012299,2]
[347258172,1735643432044,-2903.75478632,0.00012299,2]
[347258173,1735643432054,-25000.0,0.0001234,2]
[347258174,1735643432063,-7500.0,0.00012349,2]
[347258175,1735643432073,-7500.0,0.00012349,2]
[347258176,1735643432083,-7500.0,0.00012349,2]
[347258177,1735643432092,-502.24711653,0.00012373,2]
[347258178,1735643432101,-648.16566158,0.00012373,2]
[347258179,1735643432110,-160.18770305,0.00012373,2]
[347258180,1735643432120,-500.0,0.00012373,2]
[347258182,1735643432129,-500.0,0.00012378,2]
[347258184,1735643432139,-359.69016016,0.00012379,2]
[347258186,1735643432148,-419.15287869,0.00012379,2]
[347258188,1735643432158,-500.0,0.00012379,2]
[347258190,1735643432168,-766.0,0.0001238,2]
[347258192,1735643432177,-2556.79571021,0.0001238,2]
[347258194,1735643432186,-217833.29941377,0.0001238,2]
[347258196,1735643432196,-200413.41536982,0.0001238,2]
[347258198,1735643432208,-147126.20931508,0.0001238,2]
[347258200,1735643432219,-8388.716768,0.0001238,2]
[347258201,1735643432236,-2431.47825,0.0001238,2]
[347258208,1735643432807,-215865.1336562,0.0001238,2]
[347258209,1735643437436,-347.58995941,0.00012299,2]
[347258210,1735643437446,-500.0,0.00012373,2]
[347258211,1735643437456,-683.0,0.0001238,2]
[347258212,1735643437465,-17054.05404059,0.0001238,2]
[347258241,1735643438041,-5033.89728576,0.0001238,2]
[347258243,1735643438052,-8043101.83022198,0.0001238,2]
[347258245,1735643438063,-5234.8981829,0.0001238,2]
[347258350,1735643439471,-10255.8515862,0.0001238,2]
[347258382,1735643439780,-485.82,0.0001238,2]
[347258387,1735643439808,-5025.69377944,0.0001238,2]
[347258389,1735643439819,-361.46613038,0.0001238,2]
[347258391,1735643439830,-272.917,0.0001238,2]
[347258402,1735643439921,-1956195.72748179,0.0001238,2]
[347258404,1735643439932,-849894.43604328,0.0001238,2]
[347258693,1735643442708,-147971.65034714,0.0001238,2]
[347258710,1735643442858,-330097.87925823,0.0001238,2]
[347258716,1735643442903,-12781.31884356,0.0001238,2]
[347259039,1735643446351,-153.75,0.00011908,2]
[347259041,1735643446360,-153.75,0.00011928,2]
[347259043,1735643446370,-1625.76936455,0.0001238,2]
[347259045,1735643446382,-2472.94127605,0.0001238,2]
[347259064,1735643446557,-153.75,0.00011948,2]
[347259066,1735643446567,-684.65,0.0001238,2]
[347259069,1735643446579,-6552.34438,0.0001238,2]
[347260487,1735643467916,289.22,9.923e-05,2]
[347260488,1735643493493,500.0,0.00010575,2]
[347260489,1735643499178,900.0,0.00010575,2]
[347260490,1735644310469,158.0,0.00010575,30]
[347260491,1735644470635,13587.63526333,0.00013,15]
[347260515,1735644555771,274.75,9.271e-05,2]
[347260528,1735644631882,-379.76,0.00011105,2]
[347260529,1735644631893,-745.6524641,0.00011105,2]
[347260530,1735644631905,-847.2075359,0.00011105,2]
[347260531,1735644631914,-1855.06,0.00011189,2]
[347260532,1735644631924,-250.0,0.00011266,2]
[347260533,1735644631933,-150.0,0.00011293,2]
[347260534,1735644631942,-307.18,0.00011299,2]
[347260535,1735644631952,-2808.01,0.00011322,2]
[347260536,1735644631961,-6435.44,0.00011379,2]
[347260537,1735644631972,-810.42,0.00011389,2]
[347260538,1735644631981,-4339.09,0.00011431,2]
[347260539,1735644631991,-1000.0,0.00011454,2]
[347260540,1735644632001,-1286.44,0.00011454,2]
[347260541,1735644632010,-250.0,0.00011514,2]
[347260542,1735644632020,-274.75,0.00011535,2]
[347260543,1735644632032,-791.98,0.00011675,2]
[347260544,1735644632041,-150.0,0.000117,2]
[347260545,1735644632051,-150.0,0.000117,2]
[347260546,1735644632060,-150.0,0.000117,2]
[347260547,1735644632071,-332.33,0.000117,2]
[347260548,1735644632080,-269.278,0.0001188,2]
[347260549,1735644632090,-300.52,0.000119,2]
[347260550,1735644632100,-150.0,0.000119,2]
[347260551,1735644632109,-437.4,0.000119,2]
[347260552,1735644632119,-551.33,0.000119,2]
[347260553,1735644632128,-150.0,0.000119,2]
[347260554,1735644632137,-150.0,0.000119,2]
[347260555,1735644632147,-1542.5,0.000119,2]
[347260556,1735644632157,-978.55,0.000119,2]
[347260557,1735644632166,-330.98306767,0.000119,2]
[347260558,1735644632178,-647.56693233,0.000119,2]
[347260559,1735644632188,-150.0,0.000119,2]
[347260560,1735644632197,-436.74,0.000119,2]
[347260561,1735644632206,-150.0,0.000119,2]
[347260562,1735644632215,-150.0,0.000119,2]
[347260563,1735644632226,-65.76096642,0.000119,2]
[347260569,1735644632276,-370.97903358,0.000119,2]
[347260570,1735644632285,-978.55,0.000119,2]
[347260571,1735644632294,-150.0,0.000119,2]
[347260572,1735644632304,-150.0,0.000119,2]
[347260573,1735644632312,-150.0,0.000119,2]
[347260574,1735644632322,-217.83,0.000119,2]
[347260575,1735644632332,-150.0,0.000119,2]
[347260576,1735644632341,-150.0,0.000119,2]
[347260577,1735644632350,-500.0,0.00011945,2]
[347260578,1735644632359,-900.0,0.00011945,2]
[347260579,1735644632369,-153.75,0.00011968,2]
[347260580,1735644632378,-6657.55008556,0.0001218,2]
[347260581,1735644632389,-919.05299936,0.0001218,2]
[347260582,1735644632398,-206.27107802,0.00012198,2]
[347260583,1735644632409,-358.72892198,0.00012198,2]
[347260584,1735644632419,-150.298,0.00012198,2]
[347260585,1735644632428,-24.81762751,0.00012198,2]
[347260586,1735644632439,-608.18237249,0.00012198,2]
[347260587,1735644632448,-1370.14362751,0.00012198,2]
[347260588,1735644632486,-371.35,0.00012198,2]
[347260589,1735644632497,-158.50637249,0.00012198,2]
[347260590,1735644632506,-184.18747546,0.00012198,2]
[347260591,1735644632646,-435.51999,0.00012198,2]
[347260592,1735644632657,-199.29253454,0.00012198,2]
[347260593,1735644632666,-1256.0,0.00012198,2]
[347260594,1735644632675,-3773.0,0.00012198,2]
[347260595,1735644632684,-908.0,0.00012198,2]
[347260596,1735644632692,-606.70746546,0.00012198,2]
[347260597,1735644632739,-957.55557787,0.00012198,2]
[347260628,1735644638237,-747.72488862,0.00012198,2]
[347260632,1735644638266,-992.094,0.00012198,2]
[347260635,1735644638278,-111.62406805,0.00012198,2]
[347260637,1735644638288,-354.85718973,0.00012198,2]
[347260658,1735644638487,-911.14281027,0.00012198,2]
[347260660,1735644638497,-2013.0,0.00012198,2]
[347260661,1735644638506,-326.52433666,0.00012198,2]
[347260662,1735644638519,-309.47566334,0.00012198,2]
[347260663,1735644638529,-2231.118,0.00012198,2]
[347260664,1735644638538,-159.583,0.00012198,2]
[347260665,1735644638547,-2859.4561,0.0001226,2]
[347260666,1735644638556,-1000.0,0.0001228,2]
[347260667,1735644638565,-4379.69612158,0.0001228,2]
[347260669,1735644638576,-64907.37197842,0.0001228,2]
[347260671,1735644638586,-500.0,0.0001228,2]
[347260673,1735644638595,-500.0,0.00012287,2]
[347260675,1735644638604,-324.7660454,0.00012299,2]
[347260677,1735644638613,-358.41865373,0.00012299,2]
[347260679,1735644638623,-150.0,0.000123,2]
[347260681,1735644638632,-1102.0,0.000123,2]
[347260683,1735644638642,-1102.0,0.000123,2]
[347260685,1735644638651,-1102.0,0.000123,2]
[347260687,1735644638660,-1102.0,0.000123,2]
[347260689,1735644638669,-1102.0,0.000123,2]
[347260691,1735644638679,-1102.0,0.000123,2]
[347260693,1735644638688,-1102.0,0.000123,2]
[347260695,1735644638696,-1102.0,0.000123,2]
[347260697,1735644638705,-1102.0,0.000123,2]
[347260698,1735644638714,-1102.0,0.000123,2]
[347260701,1735644638726,-5398.2213136,0.000123,2]
[347260703,1735644638735,-500.0,0.00012379,2]
[347260704,1735644638744,-500.0,0.00012379,2]
[347260706,1735644638754,-346.56866075,0.00012379,2]
[347260709,1735644638763,-500.0,0.00012379,2]
[347260711,1735644638773,-300.0,0.00012379,2]
[347260712,1735644638782,-500.0,0.00012379,2]
[347260714,1735644638791,-500.0,0.00012379,2]
[347260716,1735644638800,-500.0,0.00012379,2]
[347260718,1735644638809,-500.0,0.00012379,2]
[347260720,1735644638819,-500.0,0.00012379,2]
[347260722,1735644638828,-417.90962388,0.00012379,2]
[347260724,1735644638837,-14058.36842088,0.00012379,2]
[347260726,1735644638847,-500.0,0.00012379,2]
[347260728,1735644638856,-606.0,0.0001238,2]
[347260730,1735644638865,-110540.08712799,0.0001238,2]
[347260732,1735644638874,-1278.39785511,0.0001238,2]
[347260734,1735644638883,-7827895.72054222,0.0001238,2]
[347260756,1735644639096,-3116.24059349,0.0001238,2]
[347260905,1735644640579,-592.53,0.0001238,2]
[347260908,1735644640590,-500.0,0.0001238,2]
[347260910,1735644640602,-2144.6,0.0001238,2]
[347260914,1735644640631,-519063.31448973,0.0001238,2]
[347260925,1735644640730,-534.7143588,0.0001238,2]
[347260928,1735644640742,-2566.47291836,0.0001238,2]
[347260930,1735644640754,-1151.87,0.0001238,2]
[347260932,1735644640766,-497.512011,0.0001238,2]
[347261160,1735644643187,-4919.45,0.0001238,2]
[347261164,1735644643215,-1609.47645349,0.0001238,2]
[347263304,1735644716191,500.0,0.00010575,2]
[347263305,1735644717167,800.0,0.00010575,2]
[347263453,1735644928873,6036.9437708,0.0001,2]
[347263457,1735645226225,2000.0,0.0002,120]
[347263458,1735645264360,-202.7,0.00025023,30]
[347263459,1735645264410,-202.7,0.00025023,30]
[347263460,1735645264460,-1000.0,0.00025023,30]
[347263461,1735645264511,-1000.0,0.00025023,60]
[347263462,1735645264557,-1000.0,0.00025023,60]
[347263463,1735645264609,-1000.0,0.00025023,30]
[347263464,1735645264659,-1000.0,0.00025023,30]
[347263465,1735645264706,-1000.0,0.00025023,30]
[347263466,1735645264755,-1000.0,0.00025023,60]
[347263467,1735645264802,-1000.0,0.00025023,60]
[347263468,1735645264849,-1000.0,0.00025023,30]
[347263469,1735645264897,-1000.0,0.00025023,120]
[347263470,1735645264944,-202.7,0.00025023,30]
[347263471,1735645264991,-3131.40734195,0.00025023,30]
[347263472,1735645265038,-502.86455607,0.00025023,30]
[347263473,1735645265085,-375.82862157,0.00025023,30]
[347263474,1735645265130,-2381.40017686,0.00025023,30]
[347263475,1735645265177,-862.12295839,0.00025023,30]
[347263476,1735645265223,-1000.0,0.00025023,30]
[347263477,1735645265270,-2338.99330895,0.00025023,30]
[347263478,1735645265318,-2730.44691077,0.00025023,30]
[347263479,1735645265365,-1978.90800698,0.00025023,30]
[347263480,1735645265412,-1876.81096906,0.00025023,30]
[347263481,1735645265460,-727.50586704,0.00025023,30]
[347263482,1735645265508,-302.3912625,0.00025023,30]
[347263483,1735645265554,-449.36794757,0.00025023,30]
[347263484,1735645265601,-260.97416965,0.00025023,30]
[347263485,1735645265646,-2500.0,0.00025023,30]
[347263486,1735645265694,-281.65571116,0.00025023,120]
[347263487,1735645265740,-844.45880998,0.00025023,30]
[347263488,1735645265787,-2029.39235875,0.00025023,30]
[347263489,1735645265832,-3000.0,0.00025023,30]
[347263490,1735645265875,-852.53564452,0.00025023,30]
[347263491,1735645265919,-918.30121427,0.00025023,30]
[347263492,1735645265965,-205.53487896,0.00025023,30]
[347263493,1735645266008,-948.68733985,0.00025023,30]
[347263494,1735645266052,-346.74223929,0.00025023,30]
[347263495,1735645266098,-3033.93687344,0.00025023,30]
[347263496,1735645266141,-872.62945569,0.00025023,30]
[347263497,1735645266186,-200.97242105,0.00025023,30]
[347263498,1735645266521,-263.23444655,0.00025023,30]
[347263499,1735645266574,-2654.14873763,0.00025023,30]
[347263500,1735645266621,-1743.73847523,0.00025023,30]
[347263501,1735645266667,-2293.6467146,0.00025023,30]
[347263502,1735645266710,-1443.71754463,0.00025023,30]
[347263503,1735645266755,-1099.80550748,0.00025023,30]
[347263504,1735645266799,-297.36523698,0.00025023,30]
[347263505,1735645266843,-2166.50931045,0.00025023,30]
[347263506,1735645266888,-275.0,0.00025023,30]
[347263507,1735645266936,-2000.0,0.00025023,30]
[347263508,1735645266983,-421.40479243,0.00025023,30]
[347263509,1735645267031,-1047.99,0.00025023,30]
[347263510,1735645267078,-13476.42,0.00025023,120]
[347263511,1735645267123,-9681.65782969,0.00025023,120]
[347263512,1735645267169,-2098170.0,0.00025023,30]
[347263513,1735645267217,-1000.0,0.00025023,120]
[347263514,1735645267262,-3013.0,0.00025023,30]
[347263515,1735645267308,-202.7,0.00025023,30]
[347263516,1735645267354,-1401.22544951,0.00025023,30]
[347263517,1735645267404,-1457.65226952,0.00025023,60]
[347263518,1735645267455,-234.53498905,0.00025023,120]
[347263519,1735645267507,-74285.002415,0.00025023,30]
[347263520,1735645267555,-202.7,0.00025023,30]
[347263521,1735645267606,-1087.33,0.00025023,120]
[347263522,1735645267656,-170.9966593,0.00025023,120]
[347263523,1735645267703,-170.9966593,0.00025023,120]
[347263524,1735645267753,-170.9966593,0.00025023,120]
[347263525,1735645267798,-170.9966593,0.00025023,120]
[347263526,1735645267844,-3284.66985269,0.00025023,120]
[347263527,1735645267890,-1002.01921868,0.00025023,120]
[347263528,1735645267937,-2000.0,0.00025023,120]
[347263529,1735645267985,-200000.0,0.00025023,120]
[347263530,1735645268033,-500.0,0.00025023,60]
[347263531,1735645268078,-500.0,0.00025023,60]
[347263532,1735645268124,-509.95250242,0.00025023,60]
[347263533,1735645268169,-500.0,0.00025023,60]
[347263534,1735645268214,-500.0,0.00025023,60]
[347263535,1735645268259,-500.0,0.00025023,60]
[347263536,1735645268303,-500.0,0.00025023,60]
[347263537,1735645268346,-500.0,0.00025023,60]
[347263538,1735645268390,-500.0,0.00025023,60]
[347263539,1735645268435,-451.05956571,0.00025023,60]
[347263540,1735645268482,-500.0,0.00025023,60]
[347263541,1735645268527,-500.0,0.00025023,60]
[347263542,1735645268572,-500.0,0.00025023,60]
[347263543,1735645268618,-500.0,0.00025023,60]
[347263544,1735645268664,-500.0,0.00025023,60]
[347263545,1735645268706,-502.27169075,0.00025023,60]
[347263546,1735645268749,-500.0,0.00025023,60]
[347263547,1735645268790,-500.0,0.00025023,60]
[347263548,1735645268830,-500.0,0.00025023,60]
[347263549,1735645268872,-500.0,0.00025023,60]
[347263550,1735645268912,-500.0,0.00025023,60]
[347263551,1735645268957,-500.0,0.00025023,60]
[347263552,1735645269000,-517.10079305,0.00025023,60]
[347263553,1735645269042,-500.0,0.00025023,60]
[347263554,1735645269084,-500.0,0.00025023,60]
[347263555,1735645269126,-500.0,0.00025023,60]
[347263556,1735645269167,-500.0,0.00025023,60]
[347263557,1735645269210,-500.0,0.00025023,60]
[347263558,1735645269257,-500.0,0.00025023,60]
[347263559,1735645269302,-500.0,0.00025023,60]
[347263560,1735645269348,-500.0,0.00025023,60]
[347263561,1735645269396,-457.3898499,0.00025023,60]
[347263562,1735645269446,-500.0,0.00025023,60]
[347263563,1735645269496,-500.0,0.00025023,60]
[347263564,1735645269548,-500.0,0.00025023,60]
[347263565,1735645269597,-500.0,0.00025023,60]
[347263566,1735645269644,-461.31058112,0.00025023,60]
[347263567,1735645269692,-500.0,0.00025023,60]
[347263568,1735645269739,-500.0,0.00025023,60]
[347263569,1735645269787,-500.0,0.00025023,60]
[347263570,1735645269834,-500.0,0.00025023,60]
[347263571,1735645269881,-500.0,0.00025023,60]
[347263572,1735645269928,-510.45110326,0.00025023,60]
[347263573,1735645269973,-500.0,0.00025023,60]
[347263574,1735645270015,-353.62554963,0.00025023,60]
[347263575,1735645270059,-500.0,0.00025023,60]
[347263576,1735645270105,-500.0,0.00025023,60]
[347263577,1735645270149,-500.0,0.00025023,60]
[347263578,1735645270196,-500.0,0.00025023,60]
[347263579,1735645270243,-500.0,0.00025023,60]
[347263580,1735645270289,-500.0,0.00025023,60]
[347263581,1735645270336,-500.0,0.00025023,60]
[347263582,1735645270380,-500.0,0.00025023,60]
[347263583,1735645270426,-500.0,0.00025023,60]